fUST/lending_fUST_20250719
["ID","MTS","AMOUNT","RATE_DAILY","PERIOD"]
[373181459,1752893447357,-460.0,0.0001863,2]
[373181460,1752893447369,-2461.13,0.0001863,2]
[373181461,1752893447380,-477.7346262,0.0001863,2]
[373181462,1752893447391,-956.44,0.0001863,2]
[373181463,1752893447401,-460.0,0.0001863,2]
[373181464,1752893447411,-460.0,0.0001863,2]
[373181465,1752893447422,-2423.22744153,0.00018762,2]
[373181466,1752893447432,-160.0,0.00018781,2]
[373181467,1752893447442,-529.96205834,0.00018892,2]
[373181468,1752893447454,-1445.0674579,0.000189,2]
[373181469,1752893447465,-630.42,0.00018904,2]
[373181470,1752893447474,-460.0,0.00018904,2]
[373181471,1752893447484,-460.0,0.00018904,2]
[373181472,1752893447493,-460.0,0.00018904,2]
[373181473,1752893447503,-460.0,0.00018904,2]
[373181474,1752893447513,-460.0,0.00018904,2]
[373181475,1752893447522,-498.43483567,0.00018904,2]
[373181476,1752893447532,-2494.61,0.00018904,2]
[373181477,1752893447542,-502.73,0.00018904,2]
[373181478,1752893447553,-1190.86,0.00018904,2]
[373181479,1752893447562,-460.0,0.00018904,2]
[373181480,1752893447572,-1157.25,0.00018904,2]
[373181481,1752893447581,-460.0,0.00018904,2]
[373181482,1752893447590,-643.37,0.00018904,2]
[373181483,1752893447600,-237.81,0.00018904,2]
[373181484,1752893447609,-460.0,0.00018904,2]
[373181485,1752893447620,-460.0,0.00018904,2]
[373181486,1752893447629,-460.0,0.00018904,2]
[373181487,1752893447639,-1484.52,0.00018904,2]
[373181488,1752893447649,-572.13,0.00018904,2]
[373181489,1752893447658,-460.0,0.00018904,2]
[373181490,1752893447668,-293.51950427,0.00018904,2]
[373181491,1752893447678,-959.37,0.00018904,2]
[373181492,1752893447687,-460.0,0.00018904,2]
[373181493,1752893447697,-460.0,0.00018904,2]
[373181494,1752893447707,-940.39,0.00018904,2]
[373181495,1752893447716,-1324.87,0.00018904,2]
[373181496,1752893447727,-572.53,0.00018904,2]
[373181497,1752893447736,-1321.61,0.00018904,2]
[373181498,1752893447746,-522.43,0.00018904,2]
[373181499,1752893447755,-460.0,0.00018904,2]
[373181500,1752893447765,-821.46,0.00018904,2]
[373181501,1752893447775,-980.46,0.00018904,2]
[373181502,1752893447787,-471.79,0.00018904,2]
[373181503,1752893447796,-460.0,0.00018904,2]
[373181504,1752893447806,-2461.13,0.00018904,2]
[373181505,1752893447815,-956.44,0.00018904,2]
[373181506,1752893447824,-169.8530551,0.00018904,2]
[373181507,1752893447835,-460.0,0.00018904,2]
[373181508,1752893447845,-7356.9806417,0.00019031,2]
[373181509,1752893447855,-2423.22744153,0.00019072,2]
[373181510,1752893447866,-630.42,0.00019178,2]
[373181511,1752893447876,-460.0,0.00019178,2]
[373181512,1752893447885,-460.0,0.00019178,2]
[373181513,1752893447895,-460.0,0.00019178,2]
[373181514,1752893447905,-460.0,0.00019178,2]
[373181515,1752893447914,-2494.61,0.00019178,2]
[373181516,1752893447924,-502.73,0.00019178,2]
[373181517,1752893447935,-1190.86,0.00019178,2]
[373181518,1752893447945,-460.0,0.00019178,2]
[373181519,1752893447955,-1157.25,0.00019178,2]
[373181520,1752893447965,-460.0,0.00019178,2]
[373181521,1752893447975,-643.37,0.00019178,2]
[373181522,1752893447984,-460.0,0.00019178,2]
[373181523,1752893447994,-460.0,0.00019178,2]
[373181524,1752893448004,-1484.52,0.00019178,2]
[373181525,1752893448014,-572.13,0.00019178,2]
[373181526,1752893448023,-460.0,0.00019178,2]
[373181527,1752893448033,-959.37,0.00019178,2]
[373181528,1752893448043,-460.0,0.00019178,2]
[373181529,1752893448053,-460.0,0.00019178,2]
[373181530,1752893448063,-940.39,0.00019178,2]
[373181531,1752893448073,-1324.87,0.00019178,2]
[373181532,1752893448083,-572.53,0.00019178,2]
[373181533,1752893448094,-1321.61,0.00019178,2]
[373181534,1752893448103,-460.0,0.00019178,2]
[373181535,1752893448114,-821.46,0.00019178,2]
[373181536,1752893448124,-980.46,0.00019178,2]
[373181537,1752893448134,-471.79,0.00019178,2]
[373181538,1752893448144,-422.14861646,0.00019178,2]
[373181539,1752893448154,-2461.13,0.00019178,2]
[373181540,1752893448163,-956.44,0.00019178,2]
[373181541,1752893448173,-460.0,0.00019178,2]
[373181542,1752893448183,-5000.0,0.00019178,2]
[373181543,1752893448193,-171.15023,0.00019178,2]
[373181544,1752893448203,-800.0,0.00019186,2]
[373181545,1752893448212,-358.108017,0.00019221,2]
[373181546,1752893448222,-260.0,0.00019329,2]
[373181547,1752893448264,-158.09469489,0.00019329,2]
[373181548,1752893448274,-2423.22744153,0.00019383,2]
[373181549,1752893448285,-7356.9806417,0.00019383,2]
[373181550,1752893448296,-630.42,0.00019452,2]
[373181551,1752893448306,-460.0,0.00019452,2]
[373181552,1752893448316,-460.0,0.00019452,2]
[373181553,1752893448326,-460.0,0.00019452,2]
[373181554,1752893448336,-460.0,0.00019452,2]
[373181555,1752893448346,-2494.61,0.00019452,2]
[373181556,1752893448357,-502.73,0.00019452,2]
[373181557,1752893448366,-1190.86,0.00019452,2]
[373181558,1752893448376,-231.68,0.00019452,2]
[373181559,1752893448385,-1157.25,0.00019452,2]
[373181560,1752893448395,-460.0,0.00019452,2]
[373181561,1752893448404,-643.37,0.00019452,2]
[373181562,1752893448413,-172.05335677,0.00019452,2]
[373181563,1752893448423,-460.0,0.00019452,2]
[373181564,1752893448432,-1484.52,0.00019452,2]
[373181565,1752893448442,-572.13,0.00019452,2]
[373181566,1752893448451,-211.06105231,0.00019452,2]
[373181567,1752893448461,-959.37,0.00019452,2]
[373181568,1752893448471,-477.39810866,0.00019452,2]
[373181569,1752893448480,-460.0,0.00019452,2]
[373181570,1752893448489,-940.39,0.00019452,2]
[373181571,1752893448499,-1324.87,0.00019452,2]
[373181572,1752893448510,-572.53,0.00019452,2]
[373181573,1752893448519,-1321.61,0.00019452,2]
[373181574,1752893448529,-460.0,0.00019452,2]
[373181575,1752893448538,-821.46,0.00019452,2]
[373181576,1752893448547,-980.46,0.00019452,2]
[373181577,1752893448557,-471.79,0.00019452,2]
[373181578,1752893448566,-2461.13,0.00019452,2]
[373181579,1752893448576,-956.44,0.00019452,2]
[373181580,1752893448585,-460.0,0.00019452,2]
[373181581,1752893448595,-7356.9806417,0.00019491,2]
[373181582,1752893448605,-502.0,0.0001963,2]
[373181583,1752893448615,-587.0,0.0001963,2]
[373181584,1752893448625,-2423.22744153,0.00019693,2]
[373181585,1752893448634,-630.42,0.00019726,2]
[373181586,1752893448644,-460.0,0.00019726,2]
[373181587,1752893448653,-460.0,0.00019726,2]
[373181588,1752893448663,-460.0,0.00019726,2]
[373181589,1752893448672,-460.0,0.00019726,2]
[373181590,1752893448682,-2494.61,0.00019726,2]
[373181591,1752893448691,-502.73,0.00019726,2]
[373181592,1752893448701,-1190.86,0.00019726,2]
[373181593,1752893448711,-1157.25,0.00019726,2]
[373181594,1752893448720,-460.0,0.00019726,2]
[373181595,1752893448730,-643.37,0.00019726,2]
[373181596,1752893448739,-460.0,0.00019726,2]
[373181597,1752893448750,-1484.52,0.00019726,2]
[373181598,1752893448759,-572.13,0.00019726,2]
[373181599,1752893448769,-959.37,0.00019726,2]
[373181600,1752893448778,-940.39,0.00019726,2]
[373181601,1752893448788,-1324.87,0.00019726,2]
[373181602,1752893448798,-572.53,0.00019726,2]
[373181603,1752893448809,-1321.61,0.00019726,2]
[373181604,1752893448818,-460.0,0.00019726,2]
[373181605,1752893448828,-821.46,0.00019726,2]
[373181606,1752893448838,-980.46,0.00019726,2]
[373181607,1752893448848,-471.79,0.00019726,2]
[373181608,1752893448857,-2461.13,0.00019726,2]
[373181609,1752893448867,-956.44,0.00019726,2]
[373181610,1752893448877,-460.0,0.00019726,2]
[373181611,1752893448887,-7356.9806417,0.00019729,2]
[373181612,1752893448897,-360.0,0.00019877,2]
[373181613,1752893448908,-630.42,0.0002,2]
[373181614,1752893448918,-531.33372629,0.0002,2]
[373181615,1752893448928,-460.0,0.0002,2]
[373181616,1752893448937,-460.0,0.0002,2]
[373181617,1752893448948,-460.0,0.0002,2]
[373181618,1752893448958,-2494.61,0.0002,2]
[373181619,1752893448967,-502.73,0.0002,2]
[373181620,1752893448977,-1190.86,0.0002,2]
[373181621,1752893448986,-1157.25,0.0002,2]
[373181622,1752893448996,-460.0,0.0002,2]
[373181623,1752893449006,-643.37,0.0002,2]
[373181624,1752893449015,-460.0,0.0002,2]
[373181625,1752893449025,-1484.52,0.0002,2]
[373181626,1752893449035,-572.13,0.0002,2]
[373181627,1752893449046,-959.37,0.0002,2]
[373181628,1752893449055,-940.39,0.0002,2]
[373181629,1752893449065,-1324.87,0.0002,2]
[373181630,1752893449075,-572.53,0.0002,2]
[373181631,1752893449085,-1321.61,0.0002,2]
[373181632,1752893449095,-460.0,0.0002,2]
[373181633,1752893449104,-821.46,0.0002,2]
[373181634,1752893449114,-980.46,0.0002,2]
[373181635,1752893449123,-471.79,0.0002,2]
[373181636,1752893449132,-2461.13,0.0002,2]
[373181637,1752893449142,-956.44,0.0002,2]
[373181638,1752893449151,-270.74,0.0002,2]
[373181639,1752893449160,-2423.22744153,0.00020003,2]
[373181640,1752893449170,-529.96205834,0.00020169,2]
[373181641,1752893449179,-451.481691,0.00020187,2]
[373181642,1752893449189,-7356.9806417,0.00020262,2]
[373181643,1752893449198,-630.42,0.00020273,2]
[373181644,1752893449207,-460.0,0.00020273,2]
[373181645,1752893449218,-460.0,0.00020273,2]
[373181646,1752893449228,-460.0,0.00020273,2]
[373181647,1752893449240,-2494.61,0.00020273,2]
[373181648,1752893449250,-502.73,0.00020273,2]
[373181649,1752893449259,-1190.86,0.00020273,2]
[373181650,1752893449279,-1157.25,0.00020273,2]
[373181651,1752893449289,-460.0,0.00020273,2]
[373181652,1752893449298,-643.37,0.00020273,2]
[373181653,1752893449307,-254.70868515,0.00020273,2]
[373181654,1752893449319,-1484.52,0.00020273,2]
[373181655,1752893449329,-572.13,0.00020273,2]
[373181656,1752893449338,-959.37,0.00020273,2]
[373181657,1752893449348,-940.39,0.00020273,2]
[373181658,1752893449357,-1324.87,0.00020273,2]
[373181659,1752893449367,-572.53,0.00020273,2]
[373181660,1752893449377,-1321.61,0.00020273,2]
[373181661,1752893449386,-460.0,0.00020273,2]
[373181662,1752893449396,-821.46,0.00020273,2]
[373181663,1752893449407,-980.46,0.00020273,2]
[373181664,1752893449416,-471.79,0.00020273,2]
[373181665,1752893449426,-2461.13,0.00020273,2]
[373181666,1752893449435,-956.44,0.00020273,2]
[373181667,1752893449445,-800.0,0.00020282,2]
[373181668,1752893449454,-2423.22744153,0.00020314,3]
[373181669,1752893449464,-7356.9806417,0.00020336,2]
[373181670,1752893449474,-501.51906247,0.00020353,2]
[373181671,1752893449484,-501.04531724,0.00020353,2]
[373181672,1752893449494,-500.0,0.00020353,2]
[373181673,1752893449504,-500.0,0.00020353,2]
[373181674,1752893449514,-501.03367433,0.00020369,2]
[373181675,1752893449524,-501.72457853,0.00020369,2]
[373181676,1752893449534,-305.33086894,0.00020369,2]
[373181677,1752893449543,-170.18971475,0.00020369,2]
[373181678,1752893449553,-150.44874067,0.00020369,2]
[373181679,1752893449563,-460.0,0.00020425,2]
[373181680,1752893449573,-28316.767607,0.00020446,2]
[373181681,1752893449583,-618.97160078,0.0002045,2]
[373181682,1752893449593,-250.0,0.00020497,2]
[373181683,1752893449603,-630.42,0.00020547,2]
[373181684,1752893449612,-460.0,0.00020547,2]
[373181685,1752893449622,-460.0,0.00020547,2]
[373181686,1752893449631,-208.38032976,0.00020547,2]
[373181687,1752893449641,-2494.61,0.00020547,2]
[373181688,1752893449651,-502.73,0.00020547,2]
[373181689,1752893449661,-1190.86,0.00020547,2]
[373181690,1752893449671,-1157.25,0.00020547,2]
[373181691,1752893449681,-460.0,0.00020547,2]
[373181692,1752893449691,-643.37,0.00020547,2]
[373181693,1752893449701,-1484.52,0.00020547,2]
[373181694,1752893449710,-572.13,0.00020547,2]
[373181695,1752893449720,-959.37,0.00020547,2]
[373181696,1752893449730,-940.39,0.00020547,2]
[373181697,1752893449739,-1324.87,0.00020547,2]
[373181698,1752893449751,-572.53,0.00020547,2]
[373181699,1752893449761,-1321.61,0.00020547,2]
[373181700,1752893449771,-460.0,0.00020547,2]
[373181701,1752893449781,-821.46,0.00020547,2]
[373181702,1752893449791,-980.46,0.00020547,2]
[373181703,1752893449800,-471.79,0.00020547,2]
[373181704,1752893449809,-2461.13,0.00020547,2]
[373181705,1752893449819,-956.44,0.00020547,2]
[373181706,1752893449829,-180.7469634,0.00020548,2]
[373181707,1752893449839,-7356.98064173,0.00020562,2]
[373181708,1752893449848,-153.5086995,0.00020575,2]
[373181709,1752893449858,-577.0505339,0.00020575,2]
[373181710,1752893449867,-577.0505339,0.00020575,2]
[373181711,1752893449877,-873.117024,0.00020575,2]
[373181712,1752893449887,-2423.22744153,0.00020624,3]
[373181713,1752893449898,-358.108017,0.00020635,2]
[373181714,1752893449907,-649.403,0.00020678,2]
[373181715,1752893449917,-2156.0,0.00020678,2]
[373181716,1752893449927,-517.294,0.00020807,2]
[373181717,1752893449937,-630.42,0.00020821,2]
[373181718,1752893449947,-341.20798308,0.00020821,2]
[373181719,1752893449957,-460.0,0.00020821,2]
[373181720,1752893449967,-2494.61,0.00020821,2]
[373181721,1752893449976,-502.73,0.00020821,2]
[373181722,1752893449986,-1190.86,0.00020821,2]
[373181723,1752893449996,-1157.25,0.00020821,2]
[373181724,1752893450008,-460.0,0.00020821,2]
[373181725,1752893450018,-643.37,0.00020821,2]
[373181726,1752893450028,-1484.52,0.00020821,2]
[373181727,1752893450038,-572.13,0.00020821,2]
[373181728,1752893450047,-959.37,0.00020821,2]
[373181729,1752893450057,-940.39,0.00020821,2]
[373181730,1752893450067,-1324.87,0.00020821,2]
[373181731,1752893450077,-572.53,0.00020821,2]
[373181732,1752893450086,-1321.61,0.00020821,2]
[373181733,1752893450096,-460.0,0.00020821,2]
[373181734,1752893450105,-821.46,0.00020821,2]
[373181735,1752893450115,-980.46,0.00020821,2]
[373181736,1752893450125,-471.79,0.00020821,2]
[373181737,1752893450134,-2461.13,0.00020821,2]
[373181738,1752893450145,-956.44,0.00020821,2]
[373181739,1752893450155,-151.44394268,0.00020822,2]
[373181740,1752893450164,-151.0,0.00020822,2]
[373181741,1752893450174,-500.0,0.00020822,2]
[373181742,1752893450184,-151.0,0.00020822,2]
[373181743,1752893450195,-1291.0,0.00020876,2]
[373181744,1752893450205,-503.40908628,0.00020901,2]
[373181745,1752893450215,-501.15015757,0.00020901,2]
[373181746,1752893450226,-2423.22744153,0.00020934,4]
[373181747,1752893450241,-658.78008592,0.00020966,2]
[373181748,1752893450252,-430.64346176,0.00020966,2]
[373181749,1752893450262,-658.78008592,0.00020966,2]
[373181750,1752893450271,-658.78008592,0.00020966,2]
[373181751,1752893450283,-658.78008592,0.00020966,2]
[373181752,1752893450293,-658.78008592,0.00020966,2]
[373181753,1752893450304,-658.78008592,0.00020966,2]
[373181754,1752893450316,-658.78008592,0.00020966,2]
[373181755,1752893450328,-658.78008592,0.00020966,2]
[373181756,1752893450339,-658.78008592,0.00020966,2]
[373181757,1752893450350,-658.78008592,0.00020966,2]
[373181758,1752893450360,-658.78008592,0.00020966,2]
[373181759,1752893450371,-658.78008592,0.00020966,2]
[373181760,1752893450381,-658.78008592,0.00020966,2]
[373181761,1752893450391,-658.78008592,0.00020966,2]
[373181762,1752893450400,-658.78008592,0.00020966,2]
[373181763,1752893450410,-151.0,0.00020967,2]
[373181764,1752893450420,-151.0,0.00020967,2]
[373181765,1752893450429,-151.0,0.00020967,2]
[373181766,1752893450439,-151.0,0.00020967,2]
[373181767,1752893450449,-151.0,0.00020967,2]
[373181768,1752893450459,-151.0,0.00020967,2]
[373181769,1752893450469,-151.0,0.00020967,2]
[373181770,1752893450478,-151.0,0.00020967,2]
[373181771,1752893450488,-151.0,0.00020967,2]
[373181772,1752893450498,-25000.0,0.00020967,2]
[373181773,1752893450508,-151.0,0.00020967,2]
[373181774,1752893450518,-151.0,0.00020967,2]
[373181775,1752893450528,-151.0,0.00020967,2]
[373181776,1752893450537,-3801.642,0.00020967,2]
[373181777,1752893450547,-151.0,0.00020967,2]
[373181778,1752893450556,-151.0,0.00020967,2]
[373181779,1752893450565,-151.0,0.00020967,2]
[373181780,1752893450575,-151.0,0.00020967,2]
[373181781,1752893450585,-151.0,0.00020967,2]
[373181782,1752893450595,-151.0,0.00020967,2]
[373181783,1752893450604,-151.0,0.00020967,2]
[373181784,1752893450614,-151.0,0.00020967,2]
[373181785,1752893450623,-17697.64054306,0.00020967,2]
[373181786,1752893450633,-151.0,0.00020967,2]
[373181787,1752893450643,-151.0,0.00020967,2]
[373181788,1752893450653,-151.0,0.00020967,2]
[373181789,1752893450662,-151.0,0.00020967,2]
[373181790,1752893450672,-151.0,0.00020967,2]
[373181791,1752893450682,-151.0,0.00020967,2]
[373181792,1752893450692,-151.0,0.00020967,2]
[373181793,1752893450702,-151.0,0.00020967,2]
[373181794,1752893450712,-151.0,0.00020967,2]
[373181795,1752893450726,-151.0,0.00020967,2]
[373181796,1752893450735,-151.0,0.00020967,2]
[373181797,1752893450745,-151.0,0.00020967,2]
[373181798,1752893450756,-153.56003024,0.00020967,2]
[373181799,1752893450767,-151.0,0.00020967,2]
[373181800,1752893450778,-151.0,0.00020967,2]
[373181801,1752893450788,-151.0,0.00020967,2]
[373181802,1752893450797,-151.0,0.00020967,2]
[373181803,1752893450807,-207.4,0.00020967,2]
[373181804,1752893450818,-151.0,0.00020967,2]
[373181805,1752893450828,-151.0,0.00020967,2]
[373181806,1752893450837,-151.0,0.00020967,2]
[373181807,1752893450847,-151.0,0.00020967,2]
[373181808,1752893450857,-151.0,0.00020967,2]
[373181809,1752893450867,-151.0,0.00020967,2]
[373181810,1752893450877,-151.0,0.00020967,2]
[373181811,1752893450887,-560.0,0.00020973,2]
[373181812,1752893450897,-270.09424136,0.00021,2]
[373181813,1752893450907,-15866.4843694,0.00021,2]
[373181814,1752893450917,-3368.97706371,0.00021,4]
[373181815,1752893450927,-548.0,0.00021003,2]
[373181816,1752893450937,-224.2,0.0002102,2]
[373181817,1752893450946,-3942.302754,0.00021022,2]
[373181818,1752893450956,-3341.0,0.00021025,2]
[373181819,1752893450967,-1292.0,0.00021047,2]
[373181820,1752893450976,-967.0,0.00021059,2]
[373181821,1752893450987,-305.40284297,0.00021077,2]
[373181822,1752893450997,-630.42,0.00021095,2]
[373181823,1752893451007,-527.02870809,0.00021095,2]
[373181824,1752893451017,-2494.61,0.00021095,2]
[373181825,1752893451027,-502.73,0.00021095,2]
[373181826,1752893451036,-1190.86,0.00021095,2]
[373181827,1752893451046,-1157.25,0.00021095,2]
[373181828,1752893451055,-460.0,0.00021095,2]
[373181829,1752893451065,-643.37,0.00021095,2]
[373181830,1752893451075,-1484.52,0.00021095,2]
[373181831,1752893451084,-572.13,0.00021095,2]
[373181832,1752893451094,-959.37,0.00021095,2]
[373181833,1752893451105,-940.39,0.00021095,2]
[373181834,1752893451115,-1324.87,0.00021095,2]
[373181835,1752893451126,-572.53,0.00021095,2]
[373181836,1752893451137,-1321.61,0.00021095,2]
[373181837,1752893451146,-551.68464819,0.00021095,2]
[373181838,1752893451156,-821.46,0.00021095,2]
[373181839,1752893451166,-471.79,0.00021095,2]
[373181840,1752893451176,-980.46,0.00021095,2]
[373181841,1752893451187,-2461.13,0.00021095,2]
[373181842,1752893451202,-956.44,0.00021095,2]
[373181843,1752893451211,-151.0,0.00021096,2]
[373181844,1752893451222,-500.0,0.00021096,2]
[373181845,1752893451236,-151.0,0.00021096,2]
[373181846,1752893451251,-310.0,0.00021123,4]
[373181847,1752893451261,-4899.88049962,0.00021129,2]
[373181848,1752893451271,-548.0,0.00021132,2]
[373181849,1752893451283,-1291.0,0.00021157,2]
[373181850,1752893451295,-967.0,0.00021185,2]
[373181851,1752893451306,-500.0,0.00021212,2]
[373181852,1752893451318,-2423.22744153,0.00021245,4]
[373181853,1752893451328,-3341.0,0.00021317,2]
[373181854,1752893451338,-630.42,0.00021369,2]
[373181855,1752893451347,-2494.61,0.00021369,2]
[373181856,1752893451358,-502.73,0.00021369,2]
[373181857,1752893451368,-1190.86,0.00021369,2]
[373181858,1752893451378,-1157.25,0.00021369,2]
[373181859,1752893451388,-460.0,0.00021369,2]
[373181860,1752893451399,-643.37,0.00021369,2]
[373181861,1752893451409,-1484.52,0.00021369,2]
[373181862,1752893451418,-572.13,0.00021369,2]
[373181863,1752893451428,-959.37,0.00021369,2]
[373181864,1752893451438,-940.39,0.00021369,2]
[373181865,1752893451448,-1324.87,0.00021369,2]
[373181866,1752893451458,-572.53,0.00021369,2]
[373181867,1752893451468,-1321.61,0.00021369,2]
[373181868,1752893451478,-821.46,0.00021369,2]
[373181869,1752893451488,-471.79,0.00021369,2]
[373181870,1752893451498,-980.46,0.00021369,2]
[373181871,1752893451509,-2461.13,0.00021369,2]
[373181872,1752893451519,-956.44,0.00021369,2]
[373181873,1752893451529,-199.784375,0.0002137,2]
[373181874,1752893451539,-500.0,0.0002137,2]
[373181875,1752893451549,-151.0,0.0002137,2]
[373181876,1752893451559,-800.0,0.00021378,2]
[373181877,1752893451568,-548.0,0.00021426,2]
[373181878,1752893451578,-529.96205834,0.00021447,2]
[373181879,1752893451588,-823.0,0.00021452,2]
[373181880,1752893451598,-151.0,0.000215,3]
[373181881,1752893451607,-217.40428983,0.00021515,2]
[373181882,1752893451617,-25000.0,0.00021515,2]
[373181883,1752893451627,-660.0,0.00021521,2]
[373181884,1752893451637,-500.0,0.00021548,2]
[373181885,1752893451648,-2423.22744153,0.00021555,5]
[373181886,1752893451658,-153.0,0.00021589,2]
[373181887,1752893451668,-153.0,0.00021589,2]
[373181888,1752893451677,-153.0,0.00021589,2]
[373181889,1752893451687,-153.0,0.00021589,2]
[373181890,1752893451698,-630.42,0.00021643,2]
[373181891,1752893451708,-2494.61,0.00021643,2]
[373181892,1752893451718,-502.73,0.00021643,2]
[373181893,1752893451728,-1190.86,0.00021643,2]
[373181894,1752893451738,-1157.25,0.00021643,2]
[373181895,1752893451748,-402.62415499,0.00021643,2]
[373181896,1752893451763,-643.37,0.00021643,2]
[373181897,1752893451774,-1484.52,0.00021643,2]
[373181898,1752893451784,-572.13,0.00021643,2]
[373181899,1752893451916,-959.37,0.00021643,2]
[373181900,1752893451927,-940.39,0.00021643,2]
[373181901,1752893451943,-1324.87,0.00021643,2]
[373181902,1752893451953,-572.53,0.00021643,2]
[373181903,1752893451963,-1321.61,0.00021643,2]
[373181904,1752893451973,-821.46,0.00021643,2]
[373181905,1752893451983,-471.79,0.00021643,2]
[373181906,1752893451992,-980.46,0.00021643,2]
[373181907,1752893452003,-2461.13,0.00021643,2]
[373181908,1752893452012,-956.44,0.00021643,2]
[373181909,1752893452023,-500.0,0.00021644,2]
[373181910,1752893452033,-240.52807795,0.00021644,2]
[373181911,1752893452042,-616.73,0.000218,10]
[373181912,1752893452052,-500.0,0.00021837,2]
[373181913,1752893452062,-2423.22744153,0.00021866,6]
[373181914,1752893452072,-151.0,0.000219,4]
[373181915,1752893452081,-10608.60107936,0.00021916,2]
[373181916,1752893452092,-151.0,0.00021916,2]
[373181917,1752893452101,-153.794426,0.00021916,2]
[373181918,1752893452111,-151.0,0.00021916,2]
[373181919,1752893452121,-172.578056,0.00021916,2]
[373181920,1752893452132,-172.578056,0.00021916,2]
[373181921,1752893452141,-290.592293,0.00021916,2]
[373181922,1752893452150,-290.592293,0.00021916,2]
[373181923,1752893452160,-151.0,0.00021916,2]
[373181924,1752893452170,-630.42,0.00021917,2]
[373181925,1752893452181,-152.450528,0.00021917,2]
[373181926,1752893452192,-151.0,0.00021917,2]
[373181927,1752893452201,-151.0,0.00021917,2]
[373181928,1752893452210,-2494.61,0.00021917,2]
[373181929,1752893452219,-502.73,0.00021917,2]
[373181930,1752893452228,-1190.86,0.00021917,2]
[373181931,1752893452241,-1157.25,0.00021917,2]
[373181932,1752893452252,-643.37,0.00021917,2]
[373181933,1752893452262,-1484.52,0.00021917,2]
[373181934,1752893452271,-626.53,0.00021917,2]
[373181935,1752893452281,-626.53,0.00021917,2]
[373181936,1752893452291,-626.53,0.00021917,2]
[373181937,1752893452300,-626.53,0.00021917,2]
[373181938,1752893452310,-626.53,0.00021917,2]
[373181939,1752893452320,-626.53,0.00021917,2]
[373181940,1752893452330,-626.53,0.00021917,2]
[373181941,1752893452340,-626.53,0.00021917,2]
[373181942,1752893452349,-626.53,0.00021917,2]
[373181943,1752893452359,-626.53,0.00021917,2]
[373181944,1752893452371,-626.53,0.00021917,2]
[373181945,1752893452380,-626.53,0.00021917,2]
[373181946,1752893452390,-626.53,0.00021917,2]
[373181947,1752893452399,-626.53,0.00021917,2]
[373181948,1752893452409,-626.53,0.00021917,2]
[373181949,1752893452418,-626.53,0.00021917,2]
[373181950,1752893452428,-626.53,0.00021917,2]
[373181951,1752893452439,-626.53,0.00021917,2]
[373181952,1752893452449,-626.53,0.00021917,2]
[373181953,1752893452460,-626.53,0.00021917,2]
[373181954,1752893452470,-626.53,0.00021917,2]
[373181955,1752893452481,-262.51255,0.00021917,2]
[373181956,1752893452490,-262.51255,0.00021917,2]
[373181957,1752893452501,-572.13,0.00021917,2]
[373181958,1752893452510,-959.37,0.00021917,2]